[Event "Titled Tuesday Blitz May 9 Early 2023"]
[White "Mortazavi, Ali"]
[Black "Barbot, Pierre"]
[WhiteFideId "401323"]
[BlackFideId "663727"]
[WhiteElo "2339"]
[BlackElo "2431"]
[Result "1-0"]
[Round "03"]
[TimeControl "180+2"]
[Date "2023.05.09"]
[WhiteClock "0:00:07"]
[BlackClock "0:00:00"]

1. Nf3 {[%clk 0:03:00]}  Nf6 {[%clk 0:02:56]} 2. g3 {[%clk 0:03:00]}  g6 {[%clk 0:02:54]} 3. Bg2 {[%clk 0:03:01]}  Bg7 {[%clk 0:02:55]} 4. O-O {[%clk 0:03:02]}  d5 {[%clk 0:02:53]} 5. d3 {[%clk 0:03:02]}  O-O {[%clk 0:02:53]} 6. Nbd2 {[%clk 0:03:02]}  c5 {[%clk 0:02:51]} 7. e3 {[%clk 0:03:03]}  Nc6 {[%clk 0:02:51]} 8. e4 {[%clk 0:03:03]}  e5 {[%clk 0:02:42]} 9. c3 {[%clk 0:03:03]}  h6 {[%clk 0:02:30]} 10. Qa4 {[%clk 0:03:01]}  Qc7 {[%clk 0:02:21]} 11. exd5 {[%clk 0:02:58]}  Nxd5 {[%clk 0:02:21]} 12. Qc4 {[%clk 0:02:56]}  Nce7 {[%clk 0:02:05]} 13. Nb3 {[%clk 0:02:32]}  b6 {[%clk 0:02:01]} 14. d4 {[%clk 0:02:05]}  Be6 {[%clk 0:01:57]} 15. Qe2 {[%clk 0:02:05]}  exd4 {[%clk 0:01:42]} 16. cxd4 {[%clk 0:02:05]}  c4 {[%clk 0:01:40]} 17. Nbd2 {[%clk 0:02:05]}  Rac8 {[%clk 0:01:32]} 18. Ne5 {[%clk 0:01:58]}  b5 {[%clk 0:00:59]} 19. Ne4 {[%clk 0:01:49]}  Nc6 {[%clk 0:00:42]} 20. Nxc6 {[%clk 0:01:48]}  Qxc6 {[%clk 0:00:43]} 21. Nc5 {[%clk 0:01:21]}  Rfe8 {[%clk 0:00:11]} 22. Nxe6 {[%clk 0:01:21]}  Rxe6 {[%clk 0:00:12]} 23. Qf3 {[%clk 0:01:16]}  Rd8 {[%clk 0:00:12]} 24. Bd2 {[%clk 0:01:06]}  Qd7 {[%clk 0:00:11]} 25. Ba5 {[%clk 0:00:55]}  Nb6 {[%clk 0:00:09]} 26. Rad1 {[%clk 0:00:51]}  Rd6 {[%clk 0:00:08]} 27. h4 {[%clk 0:00:19]}  Rxd4 {[%clk 0:00:07]} 28. Rxd4 {[%clk 0:00:18]}  Qxd4 {[%clk 0:00:07]} 29. h5 {[%clk 0:00:16]}  Qd3 {[%clk 0:00:05]} 30. Qg4 {[%clk 0:00:12]}  Bxb2 {[%clk 0:00:04]} 31. Be4 {[%clk 0:00:10]}  Qd6 {[%clk 0:00:01]} 32. hxg6 {[%clk 0:00:09]}  fxg6 {[%clk 0:00:01]} 33. Bxg6 {[%clk 0:00:09]}  Bg7 {[%clk 0:00:02]} 34. Bc2 {[%clk 0:00:07]}  Qd7 {[%clk 0:00:02]} 35. Qe4 {[%clk 0:00:07]}  Qe7 {[%clk 0:00:00]} 36. Qxe7 {[%clk 0:00:07]} 1-0


[Site "https://www.chess.com"]

[Event "Titled Tuesday Blitz May 9 Early 2023"]
[White "Abrosimov, Vladimir"]
[Black "Erzhanov, Arman"]
[WhiteFideId "4166892"]
[BlackFideId "4138821"]
[WhiteElo "2336"]
[BlackElo "2138"]
[Result "0-1"]
[Round "03"]
[TimeControl "180+2"]
[Date "2023.05.09"]
[WhiteClock "0:00:40"]
[BlackClock "0:00:45"]

1. c4 {[%clk 0:03:00]}  d6 {[%clk 0:02:57]} 2. Nc3 {[%clk 0:03:01]}  e5 {[%clk 0:02:58]} 3. g3 {[%clk 0:03:01]}  g6 {[%clk 0:02:58]} 4. Bg2 {[%clk 0:03:02]}  Bg7 {[%clk 0:02:58]} 5. d3 {[%clk 0:03:03]}  Nc6 {[%clk 0:02:51]} 6. e4 {[%clk 0:03:03]}  Nge7 {[%clk 0:02:50]} 7. Nge2 {[%clk 0:03:04]}  O-O {[%clk 0:02:51]} 8. O-O {[%clk 0:03:04]}  h6 {[%clk 0:02:51]} 9. f4 {[%clk 0:03:05]}  Be6 {[%clk 0:02:48]} 10. h3 {[%clk 0:03:01]}  Qd7 {[%clk 0:02:42]} 11. g4 {[%clk 0:03:00]}  f5 {[%clk 0:02:41]} 12. exf5 {[%clk 0:02:59]}  gxf5 {[%clk 0:02:39]} 13. g5 {[%clk 0:02:50]}  hxg5 {[%clk 0:02:38]} 14. fxg5 {[%clk 0:02:50]}  Ng6 {[%clk 0:02:37]} 15. Ng3 {[%clk 0:02:46]}  Nh4 {[%clk 0:02:28]} 16. Bd5 {[%clk 0:02:38]}  Rae8 {[%clk 0:02:04]} 17. Qh5 {[%clk 0:02:34]}  f4 {[%clk 0:01:51]} 18. Qxh4 {[%clk 0:02:05]}  fxg3 {[%clk 0:01:50]} 19. Qxg3 {[%clk 0:02:03]}  Nd4 {[%clk 0:01:48]} 20. Be3 {[%clk 0:01:58]}  Nf5 {[%clk 0:01:36]} 21. Qe1 {[%clk 0:01:47]}  c6 {[%clk 0:01:26]} 22. Bxe6+ {[%clk 0:01:46]}  Qxe6 {[%clk 0:01:27]} 23. Rf3 {[%clk 0:01:35]}  Qg6 {[%clk 0:01:16]} 24. Kh2 {[%clk 0:01:28]}  Nd4 {[%clk 0:00:53]} 25. Rxf8+ {[%clk 0:01:25]}  Rxf8 {[%clk 0:00:53]} 26. Bxd4 {[%clk 0:01:25]}  exd4 {[%clk 0:00:54]} 27. Ne4 {[%clk 0:01:25]}  Be5+ {[%clk 0:00:52]} 28. Kh1 {[%clk 0:01:15]}  Qh5 {[%clk 0:00:51]} 29. Nf6+ {[%clk 0:01:00]}  Rxf6 {[%clk 0:00:46]} 30. gxf6 {[%clk 0:00:58]}  Qxh3+ {[%clk 0:00:46]} 31. Kg1 {[%clk 0:00:58]}  Bh2+ {[%clk 0:00:46]} 32. Kf2 {[%clk 0:00:53]}  Bg3+ {[%clk 0:00:46]} 33. Ke2 {[%clk 0:00:51]}  Qg2+ {[%clk 0:00:46]} 34. Kd1 {[%clk 0:00:43]}  Bxe1 {[%clk 0:00:47]} 35. Rc1 {[%clk 0:00:40]}  Qd2# {[%clk 0:00:45]} 0-1


[Site "https://www.chess.com"]

[Event "Titled Tuesday Blitz May 9 Early 2023"]
[White "Hindermann, Felix"]
[Black "I_KID_you_not"]
[WhiteFideId "1305212"]
[WhiteElo "2206"]
[BlackElo "2276"]
[Result "0-1"]
[Round "03"]
[TimeControl "180+2"]
[Date "2023.05.09"]
[WhiteClock "0:00:00"]
[BlackClock "0:00:30"]

1. e4 {[%clk 0:02:59]}  c5 {[%clk 0:03:00]} 2. c3 {[%clk 0:02:59]}  e6 {[%clk 0:02:59]} 3. d4 {[%clk 0:02:59]}  d5 {[%clk 0:03:00]} 4. e5 {[%clk 0:03:00]}  Nc6 {[%clk 0:03:00]} 5. Be3 {[%clk 0:03:00]}  Bd7 {[%clk 0:02:57]} 6. Nf3 {[%clk 0:03:00]}  f6 {[%clk 0:02:54]} 7. Bd3 {[%clk 0:02:58]}  fxe5 {[%clk 0:02:46]} 8. dxe5 {[%clk 0:02:59]}  Qc7 {[%clk 0:02:42]} 9. O-O {[%clk 0:02:59]}  Nxe5 {[%clk 0:02:35]} 10. Nxe5 {[%clk 0:03:00]}  Qxe5 {[%clk 0:02:35]} 11. Nd2 {[%clk 0:03:01]}  O-O-O {[%clk 0:02:34]} 12. Nf3 {[%clk 0:02:52]}  Qc7 {[%clk 0:02:31]} 13. c4 {[%clk 0:02:48]}  d4 {[%clk 0:02:28]} 14. Bg5 {[%clk 0:02:48]}  Nf6 {[%clk 0:02:22]} 15. a3 {[%clk 0:02:48]}  h6 {[%clk 0:02:16]} 16. Bh4 {[%clk 0:02:48]}  e5 {[%clk 0:02:12]} 17. Re1 {[%clk 0:02:46]}  Bd6 {[%clk 0:02:12]} 18. b4 {[%clk 0:02:45]}  Rde8 {[%clk 0:02:12]} 19. Nd2 {[%clk 0:02:29]}  g5 {[%clk 0:01:31]} 20. Bg3 {[%clk 0:02:29]}  h5 {[%clk 0:01:32]} 21. f3 {[%clk 0:02:20]}  h4 {[%clk 0:01:31]} 22. Bf2 {[%clk 0:02:21]}  g4 {[%clk 0:01:31]} 23. Ne4 {[%clk 0:02:18]}  Nxe4 {[%clk 0:01:27]} 24. Bxe4 {[%clk 0:02:19]}  gxf3 {[%clk 0:01:20]} 25. Qxf3 {[%clk 0:02:17]}  Ref8 {[%clk 0:01:18]} 26. Qd3 {[%clk 0:02:17]}  Bc6 {[%clk 0:01:14]} 27. bxc5 {[%clk 0:02:10]}  Bxc5 {[%clk 0:01:13]} 28. Rab1 {[%clk 0:02:11]}  Rf4 {[%clk 0:01:05]} 29. Bxc6 {[%clk 0:02:06]}  Qxc6 {[%clk 0:01:05]} 30. Rxe5 {[%clk 0:02:05]}  Rg8 {[%clk 0:01:06]} 31. Rd5 {[%clk 0:02:05]}  Rfg4 {[%clk 0:01:05]} 32. Qf3 {[%clk 0:01:54]}  Rxg2+ {[%clk 0:01:01]} 33. Qxg2 {[%clk 0:01:53]}  Rxg2+ {[%clk 0:01:02]} 34. Kxg2 {[%clk 0:01:54]}  Qg6+ {[%clk 0:01:03]} 35. Kf3 {[%clk 0:01:49]}  Qxb1 {[%clk 0:01:01]} 36. Rxc5+ {[%clk 0:01:49]}  Kd7 {[%clk 0:00:59]} 37. Bxd4 {[%clk 0:01:50]}  Qd3+ {[%clk 0:00:53]} 38. Be3 {[%clk 0:01:50]}  Qxa3 {[%clk 0:00:51]} 39. Rd5+ {[%clk 0:01:50]}  Ke6 {[%clk 0:00:49]} 40. Ke4 {[%clk 0:01:47]}  Qc3 {[%clk 0:00:43]} 41. Rd4 {[%clk 0:01:34]}  Qc2+ {[%clk 0:00:41]} 42. Kf4 {[%clk 0:01:33]}  Qxh2+ {[%clk 0:00:41]} 43. Ke4 {[%clk 0:01:34]}  Qg2+ {[%clk 0:00:42]} 44. Kd3 {[%clk 0:01:34]}  h3 {[%clk 0:00:41]} 45. Bf4 {[%clk 0:01:30]}  h2 {[%clk 0:00:36]} 46. Bxh2 {[%clk 0:01:30]}  Qxh2 {[%clk 0:00:36]} 47. c5 {[%clk 0:01:31]}  Qg3+ {[%clk 0:00:35]} 48. Kc4 {[%clk 0:01:32]}  Qa3 {[%clk 0:00:33]} 49. Rd6+ {[%clk 0:01:32]}  Ke7 {[%clk 0:00:33]} 50. Rd3 {[%clk 0:01:32]}  Qa4+ {[%clk 0:00:33]} 51. Kd5 {[%clk 0:01:33]}  Qd7+ {[%clk 0:00:33]} 52. Kc4 {[%clk 0:01:33]}  Qxd3+ {[%clk 0:00:32]} 53. Kxd3 {[%clk 0:01:34]}  Kd7 {[%clk 0:00:32]} 54. Kc3 {[%clk 0:01:35]}  Kc6 {[%clk 0:00:33]} 55. Kc4 {[%clk 0:01:35]}  a6 {[%clk 0:00:32]} 56. Kd4 {[%clk 0:01:32]}  Kb5 {[%clk 0:00:30]} 57. Kd5 {[%clk 0:01:33]}  a5 {[%clk 0:00:30]} 58. Kd4 {[%clk 0:01:33]}  a4 {[%clk 0:00:30]} 59. c6 {[%clk 0:01:32]}  bxc6 {[%clk 0:00:30]} 60. Kc3 {[%clk 0:00:00]}  c5 {[%clk 0:00:30]} 0-1


[Site "https://www.chess.com"]

[Event "Titled Tuesday Blitz May 9 Early 2023"]
[White "babbilator"]
[Black "Goffredo_Fofi"]
[WhiteElo "2271"]
[BlackElo "2540"]
[Result "0-1"]
[Round "03"]
[TimeControl "180+2"]
[Date "2023.05.09"]
[WhiteClock "0:00:00"]
[BlackClock "0:00:11"]

1. e4 {[%clk 0:03:00]}  Nf6 {[%clk 0:03:00]} 2. e5 {[%clk 0:03:00]}  Nd5 {[%clk 0:03:00]} 3. Nc3 {[%clk 0:02:57]}  e6 {[%clk 0:03:00]} 4. Ne4 {[%clk 0:02:45]}  d6 {[%clk 0:02:58]} 5. d4 {[%clk 0:02:44]}  Nd7 {[%clk 0:02:51]} 6. Nf3 {[%clk 0:02:31]}  Be7 {[%clk 0:02:35]} 7. Bd3 {[%clk 0:02:25]}  Nb4 {[%clk 0:02:30]} 8. Be2 {[%clk 0:02:12]}  dxe5 {[%clk 0:02:30]} 9. dxe5 {[%clk 0:02:12]}  Nc5 {[%clk 0:02:17]} 10. Nxc5 {[%clk 0:02:07]}  Qxd1+ {[%clk 0:02:16]} 11. Bxd1 {[%clk 0:02:03]}  Bxc5 {[%clk 0:02:16]} 12. a3 {[%clk 0:01:58]}  Nc6 {[%clk 0:02:08]} 13. b4 {[%clk 0:01:51]}  Be7 {[%clk 0:01:58]} 14. Be2 {[%clk 0:01:48]}  a5 {[%clk 0:01:57]} 15. b5 {[%clk 0:01:42]}  Nb8 {[%clk 0:01:58]} 16. Bf4 {[%clk 0:01:35]}  Nd7 {[%clk 0:01:57]} 17. O-O {[%clk 0:01:28]}  h6 {[%clk 0:01:54]} 18. Nd2 {[%clk 0:01:23]}  Nc5 {[%clk 0:01:49]} 19. h3 {[%clk 0:01:19]}  Bd7 {[%clk 0:01:48]} 20. Rfd1 {[%clk 0:01:11]}  O-O {[%clk 0:01:47]} 21. a4 {[%clk 0:01:00]}  Rfd8 {[%clk 0:01:45]} 22. Bf3 {[%clk 0:00:56]}  c6 {[%clk 0:01:14]} 23. Nc4 {[%clk 0:00:51]}  cxb5 {[%clk 0:01:11]} 24. Nb6 {[%clk 0:00:50]}  Rab8 {[%clk 0:01:10]} 25. Be3 {[%clk 0:00:34]}  Bc6 {[%clk 0:00:44]} 26. Rxd8+ {[%clk 0:00:18]}  Rxd8 {[%clk 0:00:42]} 27. Bxc6 {[%clk 0:00:16]}  bxc6 {[%clk 0:00:42]} 28. axb5 {[%clk 0:00:15]}  cxb5 {[%clk 0:00:38]} 29. Rxa5 {[%clk 0:00:14]}  Rd1+ {[%clk 0:00:30]} 30. Kh2 {[%clk 0:00:13]}  Ne4 {[%clk 0:00:17]} 31. Ra8+ {[%clk 0:00:08]}  Kh7 {[%clk 0:00:16]} 32. Ra7 {[%clk 0:00:08]}  Bc5 {[%clk 0:00:12]} 33. Bxc5 {[%clk 0:00:07]}  Nxc5 {[%clk 0:00:13]} 34. Rxf7 {[%clk 0:00:06]}  Rd2 {[%clk 0:00:14]} 35. Nc8 {[%clk 0:00:03]}  Rxc2 {[%clk 0:00:12]} 36. Nd6 {[%clk 0:00:00]}  b4 {[%clk 0:00:11]} 0-1


[Site "https://www.chess.com"]

[Event "Titled Tuesday Blitz May 9 Early 2023"]
[White "Kuchava, Ana"]
[Black "Thorhallsson, Simon"]
[WhiteFideId "13605348"]
[BlackFideId "2310090"]
[WhiteElo "2001"]
[BlackElo "2108"]
[Result "1-0"]
[Round "03"]
[TimeControl "180+2"]
[Date "2023.05.09"]
[WhiteClock "0:00:10"]
[BlackClock "0:00:04"]

1. d4 {[%clk 0:03:00]}  Nf6 {[%clk 0:02:59]} 2. Nf3 {[%clk 0:02:59]}  d5 {[%clk 0:02:59]} 3. c4 {[%clk 0:02:58]}  e6 {[%clk 0:02:58]} 4. Nc3 {[%clk 0:02:58]}  c5 {[%clk 0:02:57]} 5. cxd5 {[%clk 0:02:52]}  Nxd5 {[%clk 0:02:57]} 6. e4 {[%clk 0:02:40]}  Nxc3 {[%clk 0:02:57]} 7. bxc3 {[%clk 0:02:41]}  cxd4 {[%clk 0:02:57]} 8. cxd4 {[%clk 0:02:41]}  Bb4+ {[%clk 0:02:58]} 9. Bd2 {[%clk 0:02:39]}  Bxd2+ {[%clk 0:02:58]} 10. Qxd2 {[%clk 0:02:38]}  O-O {[%clk 0:02:59]} 11. Be2 {[%clk 0:02:34]}  b6 {[%clk 0:02:59]} 12. Rd1 {[%clk 0:01:57]}  Bb7 {[%clk 0:02:57]} 13. d5 {[%clk 0:01:54]}  exd5 {[%clk 0:02:52]} 14. exd5 {[%clk 0:01:53]}  Nd7 {[%clk 0:02:40]} 15. O-O {[%clk 0:01:53]}  Nf6 {[%clk 0:02:35]} 16. Bc4 {[%clk 0:01:51]}  Rc8 {[%clk 0:02:33]} 17. Bb3 {[%clk 0:01:50]}  Rc5 {[%clk 0:02:19]} 18. d6 {[%clk 0:01:26]}  Bd5 {[%clk 0:02:13]} 19. Bxd5 {[%clk 0:01:22]}  Rxd5 {[%clk 0:02:12]} 20. Qf4 {[%clk 0:01:22]}  h6 {[%clk 0:01:50]} 21. h3 {[%clk 0:01:17]}  Qd7 {[%clk 0:01:49]} 22. Rxd5 {[%clk 0:01:11]}  Nxd5 {[%clk 0:01:49]} 23. Qe5 {[%clk 0:01:12]}  Nf6 {[%clk 0:01:42]} 24. Rc1 {[%clk 0:01:04]}  Re8 {[%clk 0:01:39]} 25. Qd4 {[%clk 0:01:00]}  Rd8 {[%clk 0:01:34]} 26. Rc7 {[%clk 0:00:59]}  Qxd6 {[%clk 0:01:28]} 27. Qxd6 {[%clk 0:01:00]}  Rxd6 {[%clk 0:01:27]} 28. Rxa7 {[%clk 0:00:59]}  Ne4 {[%clk 0:01:19]} 29. Kf1 {[%clk 0:00:54]}  Rc6 {[%clk 0:01:09]} 30. Ne5 {[%clk 0:00:39]}  Rc1+ {[%clk 0:00:59]} 31. Ke2 {[%clk 0:00:37]}  f6 {[%clk 0:00:58]} 32. Nd7 {[%clk 0:00:26]}  Rb1 {[%clk 0:00:48]} 33. f3 {[%clk 0:00:20]}  Rb2+ {[%clk 0:00:45]} 34. Kd3 {[%clk 0:00:18]}  Nd6 {[%clk 0:00:37]} 35. Ra8+ {[%clk 0:00:14]}  Kf7 {[%clk 0:00:35]} 36. g4 {[%clk 0:00:14]}  Rh2 {[%clk 0:00:27]} 37. Nxb6 {[%clk 0:00:12]}  Rxh3 {[%clk 0:00:26]} 38. Ke3 {[%clk 0:00:12]}  Rh2 {[%clk 0:00:23]} 39. Ra7+ {[%clk 0:00:12]}  Kg6 {[%clk 0:00:21]} 40. a4 {[%clk 0:00:12]}  Rb2 {[%clk 0:00:19]} 41. a5 {[%clk 0:00:12]}  Rb5 {[%clk 0:00:15]} 42. Ra8 {[%clk 0:00:11]}  Rc5 {[%clk 0:00:11]} 43. Kf2 {[%clk 0:00:11]}  Rb5 {[%clk 0:00:10]} 44. Ra7 {[%clk 0:00:11]}  Rb4 {[%clk 0:00:10]} 45. Kg3 {[%clk 0:00:11]}  h5 {[%clk 0:00:09]} 46. Nd5 {[%clk 0:00:10]}  hxg4 {[%clk 0:00:09]} 47. Nxb4 {[%clk 0:00:09]}  gxf3 {[%clk 0:00:04]} 48. Kxf3 {[%clk 0:00:10]} 1-0


[Site "https://www.chess.com"]

[Event "Titled Tuesday Blitz May 9 Early 2023"]
[White "Wimalasuriya, Kasun M."]
[Black "egorchess95"]
[WhiteFideId "9906789"]
[WhiteElo "2220"]
[BlackElo "2532"]
[Result "0-1"]
[Round "03"]
[TimeControl "180+2"]
[Date "2023.05.09"]
[WhiteClock "0:00:14"]
[BlackClock "0:00:36"]

1. d4 {[%clk 0:02:30]}  Nf6 {[%clk 0:02:57]} 2. c4 {[%clk 0:02:30]}  e5 {[%clk 0:02:51]} 3. dxe5 {[%clk 0:02:29]}  Ng4 {[%clk 0:02:52]} 4. Nf3 {[%clk 0:02:29]}  Bc5 {[%clk 0:02:52]} 5. e3 {[%clk 0:02:28]}  Nc6 {[%clk 0:02:53]} 6. Be2 {[%clk 0:02:27]}  O-O {[%clk 0:02:53]} 7. O-O {[%clk 0:02:27]}  Ngxe5 {[%clk 0:02:53]} 8. a3 {[%clk 0:02:25]}  a5 {[%clk 0:02:53]} 9. Nc3 {[%clk 0:02:24]}  Re8 {[%clk 0:02:53]} 10. b3 {[%clk 0:02:21]}  Nxf3+ {[%clk 0:02:53]} 11. Bxf3 {[%clk 0:02:21]}  Ne5 {[%clk 0:02:54]} 12. Bb2 {[%clk 0:02:21]}  Ra6 {[%clk 0:02:54]} 13. Ne4 {[%clk 0:02:19]}  Ba7 {[%clk 0:02:54]} 14. Ng3 {[%clk 0:02:13]}  Rh6 {[%clk 0:02:52]} 15. b4 {[%clk 0:02:09]}  Qh4 {[%clk 0:02:51]} 16. h3 {[%clk 0:02:07]}  d6 {[%clk 0:02:52]} 17. Bd4 {[%clk 0:01:58]}  Bb8 {[%clk 0:02:02]} 18. Bxe5 {[%clk 0:01:52]}  Rxe5 {[%clk 0:02:02]} 19. Bg4 {[%clk 0:01:51]}  f5 {[%clk 0:01:54]} 20. Bf3 {[%clk 0:01:50]}  Ba7 {[%clk 0:01:48]} 21. Re1 {[%clk 0:01:44]}  c6 {[%clk 0:01:29]} 22. Rc1 {[%clk 0:01:38]}  g5 {[%clk 0:01:29]} 23. b5 {[%clk 0:01:17]}  g4 {[%clk 0:01:13]} 24. bxc6 {[%clk 0:01:16]}  gxf3 {[%clk 0:01:08]} 25. Qxf3 {[%clk 0:01:13]}  Re7 {[%clk 0:01:02]} 26. Qd5+ {[%clk 0:01:06]}  Be6 {[%clk 0:01:01]} 27. Qxa5 {[%clk 0:01:05]}  bxc6 {[%clk 0:00:59]} 28. Rb1 {[%clk 0:00:49]}  Qf6 {[%clk 0:00:50]} 29. Qd8+ {[%clk 0:00:27]}  Qf8 {[%clk 0:00:46]} 30. Qxd6 {[%clk 0:00:25]}  Bxc4 {[%clk 0:00:43]} 31. Qf4 {[%clk 0:00:19]}  Bd3 {[%clk 0:00:42]} 32. Rbd1 {[%clk 0:00:19]}  Bb8 {[%clk 0:00:42]} 33. Qd4 {[%clk 0:00:17]}  Bxg3 {[%clk 0:00:39]} 34. Rxd3 {[%clk 0:00:16]}  Be5 {[%clk 0:00:39]} 35. Qc4+ {[%clk 0:00:16]}  Kh8 {[%clk 0:00:40]} 36. Red1 {[%clk 0:00:16]}  Re8 {[%clk 0:00:37]} 37. Rd7 {[%clk 0:00:16]}  Rg6 {[%clk 0:00:36]} 38. f4 {[%clk 0:00:16]}  Bg7 {[%clk 0:00:33]} 39. Rc7 {[%clk 0:00:16]}  Qxa3 {[%clk 0:00:32]} 40. Rdd7 {[%clk 0:00:15]}  Qxe3+ {[%clk 0:00:33]} 41. Kh1 {[%clk 0:00:15]}  Qe1+ {[%clk 0:00:33]} 42. Kh2 {[%clk 0:00:15]}  Qg3+ {[%clk 0:00:34]} 43. Kg1 {[%clk 0:00:16]}  Re1+ {[%clk 0:00:35]} 44. Qf1 {[%clk 0:00:14]}  Qxg2# {[%clk 0:00:36]} 0-1


[Site "https://www.chess.com"]

[Event "Titled Tuesday Blitz May 9 Early 2023"]
[White "Kiseleva, Arina"]
[Black "Kokoszczynski, Jan"]
[WhiteFideId "4164989"]
[BlackFideId "1174460"]
[WhiteElo "1708"]
[BlackElo "2139"]
[Result "0-1"]
[Round "03"]
[TimeControl "180+2"]
[Date "2023.05.09"]
[WhiteClock "0:00:06"]
[BlackClock "0:00:21"]

1. d4 {[%clk 0:03:00]}  d5 {[%clk 0:02:52]} 2. Nf3 {[%clk 0:03:00]}  e6 {[%clk 0:02:52]} 3. e3 {[%clk 0:03:00]}  Nf6 {[%clk 0:02:51]} 4. Bd3 {[%clk 0:03:00]}  a6 {[%clk 0:02:52]} 5. Nbd2 {[%clk 0:02:59]}  b6 {[%clk 0:02:52]} 6. O-O {[%clk 0:02:58]}  Bb7 {[%clk 0:02:52]} 7. Ne5 {[%clk 0:02:58]}  Bd6 {[%clk 0:02:48]} 8. b3 {[%clk 0:02:56]}  Nbd7 {[%clk 0:02:48]} 9. Bb2 {[%clk 0:02:54]}  c5 {[%clk 0:02:43]} 10. Ndf3 {[%clk 0:02:44]}  O-O {[%clk 0:02:40]} 11. Nxd7 {[%clk 0:02:44]}  Qxd7 {[%clk 0:02:38]} 12. dxc5 {[%clk 0:02:31]}  bxc5 {[%clk 0:02:32]} 13. c4 {[%clk 0:02:13]}  Qe7 {[%clk 0:02:23]} 14. Ne5 {[%clk 0:02:09]}  Rfd8 {[%clk 0:02:17]} 15. Ng4 {[%clk 0:01:40]}  Ne4 {[%clk 0:01:48]} 16. f3 {[%clk 0:01:29]}  dxc4 {[%clk 0:01:04]} 17. bxc4 {[%clk 0:01:04]}  Nf6 {[%clk 0:01:03]} 18. Nxf6+ {[%clk 0:00:58]}  gxf6 {[%clk 0:01:03]} 19. Qc2 {[%clk 0:00:56]}  Bxh2+ {[%clk 0:00:27]} 20. Kf2 {[%clk 0:00:27]}  Qd6 {[%clk 0:00:22]} 21. Bxh7+ {[%clk 0:00:24]}  Kg7 {[%clk 0:00:22]} 22. f4 {[%clk 0:00:14]}  Qd2+ {[%clk 0:00:20]} 23. Qxd2 {[%clk 0:00:06]}  Rxd2+ {[%clk 0:00:21]} 0-1


[Site "https://www.chess.com"]

[Event "Titled Tuesday Blitz May 9 Early 2023"]
[White "Jaivardhan Raj"]
[Black "Andreev, Konstantin"]
[WhiteFideId "25744437"]
[BlackFideId "24239305"]
[WhiteElo "1772"]
[BlackElo "2106"]
[Result "1-0"]
[Round "03"]
[TimeControl "180+2"]
[Date "2023.05.09"]
[WhiteClock "0:00:02"]
[BlackClock "0:00:01"]

1. e4 {[%clk 0:03:00]}  c5 {[%clk 0:02:59]} 2. Nf3 {[%clk 0:03:01]}  e6 {[%clk 0:03:00]} 3. d4 {[%clk 0:03:01]}  cxd4 {[%clk 0:03:01]} 4. Nxd4 {[%clk 0:03:02]}  Nc6 {[%clk 0:03:01]} 5. Nc3 {[%clk 0:03:02]}  Qc7 {[%clk 0:03:01]} 6. Nb3 {[%clk 0:03:00]}  Nf6 {[%clk 0:03:01]} 7. Be3 {[%clk 0:03:00]}  a6 {[%clk 0:03:02]} 8. Qd2 {[%clk 0:03:00]}  Be7 {[%clk 0:03:02]} 9. f3 {[%clk 0:02:59]}  b5 {[%clk 0:03:01]} 10. a4 {[%clk 0:02:57]}  b4 {[%clk 0:03:00]} 11. Ne2 {[%clk 0:02:57]}  O-O {[%clk 0:02:59]} 12. Ned4 {[%clk 0:02:55]}  Bb7 {[%clk 0:02:57]} 13. Bd3 {[%clk 0:02:52]}  Ne5 {[%clk 0:02:53]} 14. O-O {[%clk 0:02:50]}  Nc4 {[%clk 0:02:53]} 15. Bxc4 {[%clk 0:02:48]}  Qxc4 {[%clk 0:02:53]} 16. Na5 {[%clk 0:02:47]}  Qc7 {[%clk 0:02:51]} 17. Ndb3 {[%clk 0:02:33]}  Rac8 {[%clk 0:02:43]} 18. Bf4 {[%clk 0:02:25]}  d6 {[%clk 0:02:32]} 19. Rfd1 {[%clk 0:02:14]}  Ba8 {[%clk 0:01:51]} 20. Rac1 {[%clk 0:01:51]}  Rfd8 {[%clk 0:01:44]} 21. Qe3 {[%clk 0:01:47]}  e5 {[%clk 0:01:30]} 22. Bg3 {[%clk 0:01:42]}  Nh5 {[%clk 0:01:30]} 23. Bf2 {[%clk 0:01:41]}  h6 {[%clk 0:01:28]} 24. Qb6 {[%clk 0:01:37]}  Bg5 {[%clk 0:01:25]} 25. Qxc7 {[%clk 0:01:31]}  Rxc7 {[%clk 0:01:25]} 26. Bb6 {[%clk 0:01:26]}  Bxc1 {[%clk 0:01:17]} 27. Nxc1 {[%clk 0:01:13]}  Rcd7 {[%clk 0:01:16]} 28. Bxd8 {[%clk 0:01:09]}  Rxd8 {[%clk 0:01:17]} 29. Nc4 {[%clk 0:01:06]}  Rc8 {[%clk 0:01:15]} 30. Nb6 {[%clk 0:01:05]}  Rb8 {[%clk 0:01:09]} 31. Rxd6 {[%clk 0:01:03]}  Bb7 {[%clk 0:01:06]} 32. Nd3 {[%clk 0:00:56]}  Kf8 {[%clk 0:00:48]} 33. Nd7+ {[%clk 0:00:54]}  Ke7 {[%clk 0:00:48]} 34. Rd5 {[%clk 0:00:27]}  Bxd5 {[%clk 0:00:40]} 35. Nxb8 {[%clk 0:00:26]}  Bb7 {[%clk 0:00:39]} 36. Nxb4 {[%clk 0:00:23]}  Kd6 {[%clk 0:00:25]} 37. N8xa6 {[%clk 0:00:20]}  Nf4 {[%clk 0:00:25]} 38. Kf2 {[%clk 0:00:19]}  h5 {[%clk 0:00:23]} 39. g3 {[%clk 0:00:18]}  Ne6 {[%clk 0:00:23]} 40. c4 {[%clk 0:00:14]}  Nd4 {[%clk 0:00:19]} 41. c5+ {[%clk 0:00:14]}  Kd7 {[%clk 0:00:17]} 42. Nb8+ {[%clk 0:00:11]}  Kc7 {[%clk 0:00:16]} 43. N4a6+ {[%clk 0:00:11]}  Kc8 {[%clk 0:00:16]} 44. b4 {[%clk 0:00:09]}  Nb3 {[%clk 0:00:13]} 45. b5 {[%clk 0:00:08]}  Na5 {[%clk 0:00:09]} 46. c6 {[%clk 0:00:08]}  Ba8 {[%clk 0:00:09]} 47. Nd7 {[%clk 0:00:07]}  f6 {[%clk 0:00:05]} 48. Nb6+ {[%clk 0:00:07]}  Kd8 {[%clk 0:00:03]} 49. Nxa8 {[%clk 0:00:07]}  Nc4 {[%clk 0:00:04]} 50. c7+ {[%clk 0:00:06]}  Kc8 {[%clk 0:00:04]} 51. Ke2 {[%clk 0:00:03]}  Kb7 {[%clk 0:00:05]} 52. Kd3 {[%clk 0:00:04]}  Nd6 {[%clk 0:00:05]} 53. Nb6 {[%clk 0:00:03]}  Kxb6 {[%clk 0:00:05]} 54. Kc3 {[%clk 0:00:04]}  Ka5 {[%clk 0:00:05]} 55. c8=Q {[%clk 0:00:03]}  Nxc8 {[%clk 0:00:05]} 56. Kc4 {[%clk 0:00:04]}  Nb6+ {[%clk 0:00:05]} 57. Kc5 {[%clk 0:00:04]}  Nxa4+ {[%clk 0:00:06]} 58. Kc6 {[%clk 0:00:05]}  Nc3 {[%clk 0:00:04]} 59. b6 {[%clk 0:00:05]}  Nb5 {[%clk 0:00:02]} 60. b7 {[%clk 0:00:04]}  Na7+ {[%clk 0:00:01]} 61. Kc7 {[%clk 0:00:03]}  Nb5+ {[%clk 0:00:01]} 62. Kc8 {[%clk 0:00:02]} 1-0


[Site "https://www.chess.com"]